[Event "*** SCC Grand Prix: Titled Tuesday Blitz"]
[Site "Chess.com"]
[Date "2020.07.07"]
[Round "9"]
[White "JiiHart"]
[Black "ChessArchitect64"]
[Result "1-0"]
[WhiteElo "2116"]
[BlackElo "1871"]
[TimeControl "180+1"]
[EndTime "11:46:44 PDT"]
[Termination "JiiHart won on time"]

1. e4 {[%clk 0:03:00.9]} 1... c5 {[%clk 0:02:59.2]} 2. Nf3 {[%clk 0:03:00.8]}
2... d6 {[%clk 0:02:58.8]} 3. d4 {[%clk 0:03:00.9]} 3... cxd4 {[%clk 0:02:59.7]}
4. Nxd4 {[%clk 0:03:01.1]} 4... Nf6 {[%clk 0:02:59.4]} 5. Nc3 {[%clk 0:03:01.2]}
5... Nc6 {[%clk 0:02:58.6]} 6. Bg5 {[%clk 0:02:59.3]} 6... e6 {[%clk 0:02:57.6]}
7. Qd2 {[%clk 0:02:57.4]} 7... a6 {[%clk 0:02:57.3]} 8. O-O-O {[%clk 0:02:56.4]}
8... Bd7 {[%clk 0:02:57.3]} 9. f3 {[%clk 0:02:52.9]} 9... Rc8 {[%clk 0:02:56.7]}
10. g4 {[%clk 0:02:50.6]} 10... b5 {[%clk 0:02:45.1]} 11. h4 {[%clk 0:02:37.2]}
11... Qc7 {[%clk 0:02:30.9]} 12. Nxc6 {[%clk 0:02:25.4]} 12... Bxc6 {[%clk
0:02:30.5]} 13. Bf4 {[%clk 0:02:17.8]} 13... b4 {[%clk 0:02:25.9]} 14. Ne2
{[%clk 0:02:07.9]} 14... e5 {[%clk 0:02:25.7]} 15. Be3 {[%clk 0:02:01.6]} 15...
a5 {[%clk 0:02:24.3]} 16. Ng3 {[%clk 0:01:55.8]} 16... g6 {[%clk 0:02:22.7]} 17.
g5 {[%clk 0:01:51.2]} 17... Nd7 {[%clk 0:02:17]} 18. f4 {[%clk 0:01:50.9]} 18...
exf4 {[%clk 0:01:42]} 19. Bxf4 {[%clk 0:01:49.4]} 19... Ne5 {[%clk 0:01:42.2]}
20. Bxe5 {[%clk 0:01:40.4]} 20... dxe5 {[%clk 0:01:41.9]} 21. Bc4 {[%clk
0:01:40.5]} 21... Bg7 {[%clk 0:01:02.1]} 22. Rhf1 {[%clk 0:01:37.7]} 22... O-O
{[%clk 0:01:01.7]} 23. h5 {[%clk 0:01:38.1]} 23... Bxe4 {[%clk 0:00:49.8]} 24.
Nxe4 {[%clk 0:01:29]} 24... Qxc4 {[%clk 0:00:47.8]} 25. Nf6+ {[%clk 0:01:27.9]}
25... Kh8 {[%clk 0:00:22.3]} 26. Kb1 {[%clk 0:01:24.6]} 26... a4 {[%clk
0:00:21.1]} 27. Qf2 {[%clk 0:01:10.5]} 27... b3 {[%clk 0:00:18.5]} 28. c3 {[%clk
0:01:01.2]} 28... a3 {[%clk 0:00:17.3]} 29. h6 {[%clk 0:00:25.5]} 29... bxa2+
{[%clk 0:00:13.6]} 30. Kc2 {[%clk 0:00:20.6]} 30... Qa4+ {[%clk 0:00:07.7]} 31.
b3 {[%clk 0:00:20.4]} 31... Rxc3+ {[%clk 0:00:05.5]} 32. Kxc3 {[%clk 0:00:20.2]}
32... Rc8+ {[%clk 0:00:05.9]} 33. Kd2 {[%clk 0:00:18.1]} 33... Qb4+ {[%clk
0:00:05.3]} 34. Ke3 {[%clk 0:00:09.8]} 34... Qd4+ {[%clk 0:00:03.3]} 35. Kf3
{[%clk 0:00:09.3]} 35... Rc3+ {[%clk 0:00:03.6]} 36. Kg2 {[%clk 0:00:07.6]} 1-0

[Event "*** SCC Grand Prix: Titled Tuesday Blitz"]
[Site "Chess.com"]
[Date "2020.07.07"]
[Round "9"]
[White "Azatic"]
[Black "Witik"]
[Result "1-0"]
[WhiteElo "2526"]
[BlackElo "2638"]
[TimeControl "180+1"]
[EndTime "11:46:45 PDT"]
[Termination "Azatic won on time"]

1. e4 {[%clk 0:03:00.9]} 1... c6 {[%clk 0:02:59.9]} 2. d4 {[%clk 0:03:01.4]}
2... d5 {[%clk 0:03:00]} 3. e5 {[%clk 0:03:02]} 3... Bf5 {[%clk 0:02:59.8]} 4.
Nf3 {[%clk 0:03:02.5]} 4... e6 {[%clk 0:03:00.2]} 5. Be2 {[%clk 0:03:02.6]} 5...
Bg6 {[%clk 0:03:00.2]} 6. O-O {[%clk 0:03:02.7]} 6... Nh6 {[%clk 0:03:00.8]} 7.
b3 {[%clk 0:03:03.1]} 7... c5 {[%clk 0:02:57.2]} 8. c4 {[%clk 0:03:02.8]} 8...
dxc4 {[%clk 0:02:54.5]} 9. Bxc4 {[%clk 0:03:01.2]} 9... Nc6 {[%clk 0:02:44.4]}
10. Bb5 {[%clk 0:02:56.4]} 10... Qb6 {[%clk 0:02:43]} 11. Nc3 {[%clk 0:02:45.1]}
11... O-O-O {[%clk 0:02:36.4]} 12. Bxc6 {[%clk 0:02:44.8]} 12... Qxc6 {[%clk
0:02:36.3]} 13. Bg5 {[%clk 0:02:34.9]} 13... Rd7 {[%clk 0:02:23.3]} 14. Rc1
{[%clk 0:02:31.7]} 14... Nf5 {[%clk 0:02:16.9]} 15. Qe2 {[%clk 0:01:52.4]} 15...
Kb8 {[%clk 0:01:52.1]} 16. dxc5 {[%clk 0:01:40.8]} 16... h6 {[%clk 0:01:43.9]}
17. Bf4 {[%clk 0:01:14.7]} 17... Qxc5 {[%clk 0:00:43.2]} 18. Nb5 {[%clk
0:00:57.3]} 18... Qb6 {[%clk 0:00:38.5]} 19. g4 {[%clk 0:00:39.3]} 19... Ne7
{[%clk 0:00:27.6]} 20. Be3 {[%clk 0:00:35]} 20... Qa6 {[%clk 0:00:26.6]} 21.
Bxa7+ {[%clk 0:00:29.2]} 21... Ka8 {[%clk 0:00:26.7]} 22. Nc7+ {[%clk
0:00:22.2]} 22... Rxc7 {[%clk 0:00:22.9]} 23. Qxa6 {[%clk 0:00:22.5]} 23... bxa6
{[%clk 0:00:20.6]} 24. Rxc7 {[%clk 0:00:23]} 24... Nd5 {[%clk 0:00:17.5]} 25.
Rd7 {[%clk 0:00:23.2]} 25... Bb4 {[%clk 0:00:16.1]} 26. Rc1 {[%clk 0:00:20.8]}
26... h5 {[%clk 0:00:12.9]} 27. g5 {[%clk 0:00:20.6]} 27... h4 {[%clk
0:00:13.1]} 28. Nd4 {[%clk 0:00:19.9]} 28... h3 {[%clk 0:00:11.5]} 29. a3 {[%clk
0:00:10.4]} 29... Bxa3 {[%clk 0:00:09.6]} 30. Ra1 {[%clk 0:00:10.5]} 30... Rc8
{[%clk 0:00:03.4]} 31. f3 {[%clk 0:00:11]} 31... Bc5 {[%clk 0:00:02.8]} 32. Rxa6
{[%clk 0:00:08.4]} 32... Nb4 {[%clk 0:00:01.1]} 33. Ra5 {[%clk 0:00:06]} 1-0

[Event "*** SCC Grand Prix: Titled Tuesday Blitz"]
[Site "Chess.com"]
[Date "2020.07.07"]
[Round "9"]
[White "xberli"]
[Black "ClassyEl"]
[Result "0-1"]
[WhiteElo "2302"]
[BlackElo "2455"]
[TimeControl "180+1"]
[EndTime "11:46:45 PDT"]
[Termination "ClassyEl won by checkmate"]

1. e4 {[%clk 0:03:00.9]} 1... d6 {[%clk 0:02:59.9]} 2. d4 {[%clk 0:03:00.5]}
2... Nf6 {[%clk 0:03:00]} 3. Nc3 {[%clk 0:03:00.7]} 3... c6 {[%clk 0:03:00.5]}
4. Nf3 {[%clk 0:02:58.9]} 4... Bg4 {[%clk 0:02:59.8]} 5. h3 {[%clk 0:02:58.5]}
5... Bh5 {[%clk 0:02:59.5]} 6. Be3 {[%clk 0:02:57.2]} 6... e6 {[%clk 0:02:59.2]}
7. Qe2 {[%clk 0:02:54.7]} 7... d5 {[%clk 0:02:57.9]} 8. e5 {[%clk 0:02:50.9]}
8... Nfd7 {[%clk 0:02:57.4]} 9. O-O-O {[%clk 0:02:46.8]} 9... a6 {[%clk
0:02:56]} 10. g4 {[%clk 0:02:37.1]} 10... Bg6 {[%clk 0:02:55.8]} 11. Bg5 {[%clk
0:02:37]} 11... Be7 {[%clk 0:02:40.4]} 12. Qe3 {[%clk 0:02:29]} 12... h6 {[%clk
0:02:35.6]} 13. Bxe7 {[%clk 0:02:21.2]} 13... Qxe7 {[%clk 0:02:35.9]} 14. h4
{[%clk 0:02:21.7]} 14... c5 {[%clk 0:02:34.1]} 15. h5 {[%clk 0:02:09.9]} 15...
Bh7 {[%clk 0:02:34.2]} 16. Bd3 {[%clk 0:02:07.1]} 16... Bxd3 {[%clk 0:02:32.4]}
17. Rxd3 {[%clk 0:02:08]} 17... Nc6 {[%clk 0:02:31.2]} 18. Ne2 {[%clk
0:02:07.1]} 18... c4 {[%clk 0:02:18.8]} 19. Rdd1 {[%clk 0:02:06.3]} 19... b5
{[%clk 0:02:18.7]} 20. Rdg1 {[%clk 0:02:00.8]} 20... b4 {[%clk 0:02:14.8]} 21.
g5 {[%clk 0:02:00.1]} 21... Nb6 {[%clk 0:02:12.1]} 22. gxh6 {[%clk 0:01:54.5]}
22... gxh6 {[%clk 0:02:12.4]} 23. Rg7 {[%clk 0:01:45.8]} 23... a5 {[%clk
0:02:08.1]} 24. Qf4 {[%clk 0:01:38.2]} 24... b3 {[%clk 0:01:56.3]} 25. a3 {[%clk
0:01:30.4]} 25... bxc2 {[%clk 0:01:53]} 26. Rhg1 {[%clk 0:01:25.7]} 26... Rb8
{[%clk 0:01:40.4]} 27. Nc3 {[%clk 0:01:15]} 27... Nd7 {[%clk 0:01:06.1]} 28.
Rg8+ {[%clk 0:01:04.2]} 28... Rxg8 {[%clk 0:01:05.5]} 29. Rxg8+ {[%clk
0:01:05.1]} 29... Nf8 {[%clk 0:01:05.9]} 30. Qxh6 {[%clk 0:00:56.5]} 30... Kd7
{[%clk 0:01:04.9]} 31. Qg5 {[%clk 0:00:45.3]} 31... Qxg5+ {[%clk 0:00:54.7]} 32.
Rxg5 {[%clk 0:00:38.6]} 32... Ke7 {[%clk 0:00:51.3]} 33. Rg7 {[%clk 0:00:35.1]}
33... Nd7 {[%clk 0:00:49.2]} 34. Ne2 {[%clk 0:00:15.6]} 34... Rh8 {[%clk
0:00:45.7]} 35. Rg5 {[%clk 0:00:15.1]} 35... Rh7 {[%clk 0:00:41]} 36. Kxc2
{[%clk 0:00:12.7]} 36... f6 {[%clk 0:00:41.3]} 37. exf6+ {[%clk 0:00:12.6]}
37... Nxf6 {[%clk 0:00:41.2]} 38. Nf4 {[%clk 0:00:12]} 38... Ne4 {[%clk
0:00:41.5]} 39. Rg6 {[%clk 0:00:10.1]} 39... Rf7 {[%clk 0:00:36.1]} 40. Nxe6
{[%clk 0:00:08.1]} 40... Rxf3 {[%clk 0:00:34.9]} 41. h6 {[%clk 0:00:08.2]} 41...
Rxf2+ {[%clk 0:00:34.5]} 42. Kc1 {[%clk 0:00:08.6]} 42... Rh2 {[%clk 0:00:33.4]}
43. Nf4 {[%clk 0:00:08.4]} 43... Nxd4 {[%clk 0:00:32.9]} 44. Nxd5+ {[%clk
0:00:08.7]} 44... Kd7 {[%clk 0:00:30.5]} 45. Nf6+ {[%clk 0:00:08.1]} 45... Nxf6
{[%clk 0:00:29.9]} 46. Rxf6 {[%clk 0:00:09]} 46... Nb3+ {[%clk 0:00:28]} 47. Kb1
{[%clk 0:00:08.7]} 47... Rh1+ {[%clk 0:00:26.3]} 48. Kc2 {[%clk 0:00:06.8]}
48... Rc1# {[%clk 0:00:26.2]} 0-1

[Event "*** SCC Grand Prix: Titled Tuesday Blitz"]
[Site "Chess.com"]
[Date "2020.07.07"]
[Round "9"]
[White "Maaikee"]
[Black "Jbd735"]
[Result "0-1"]
[WhiteElo "2293"]
[BlackElo "2442"]
[TimeControl "180+1"]
[EndTime "11:46:46 PDT"]
[Termination "Jbd735 won by checkmate"]

1. e4 {[%clk 0:03:00.9]} 1... e5 {[%clk 0:02:59.4]} 2. Nf3 {[%clk 0:03:00.6]}
2... Nc6 {[%clk 0:02:59.2]} 3. Bb5 {[%clk 0:03:00.5]} 3... a6 {[%clk 0:02:59.3]}
4. Ba4 {[%clk 0:03:00.9]} 4... Nf6 {[%clk 0:02:59.7]} 5. d3 {[%clk 0:03:00.1]}
5... d6 {[%clk 0:02:58.8]} 6. c3 {[%clk 0:02:58.1]} 6... g6 {[%clk 0:02:58.1]}
7. h3 {[%clk 0:02:57.8]} 7... Bg7 {[%clk 0:02:54.4]} 8. O-O {[%clk 0:02:58.3]}
8... O-O {[%clk 0:02:54.5]} 9. Be3 {[%clk 0:02:54.4]} 9... b5 {[%clk 0:02:46.3]}
10. Bc2 {[%clk 0:02:53.9]} 10... d5 {[%clk 0:02:45.4]} 11. Nbd2 {[%clk
0:02:49.5]} 11... Bb7 {[%clk 0:02:34.5]} 12. Nb3 {[%clk 0:02:44.6]} 12... Re8
{[%clk 0:02:01.2]} 13. Nc5 {[%clk 0:02:36]} 13... Bc8 {[%clk 0:02:01.3]} 14. Re1
{[%clk 0:02:24.8]} 14... Qd6 {[%clk 0:01:50.9]} 15. b4 {[%clk 0:01:56]} 15... d4
{[%clk 0:01:29.1]} 16. cxd4 {[%clk 0:01:55.9]} 16... Nxd4 {[%clk 0:01:23.3]} 17.
Nxd4 {[%clk 0:01:49.2]} 17... exd4 {[%clk 0:01:24.2]} 18. Bd2 {[%clk 0:01:48.8]}
18... Nd7 {[%clk 0:01:20.1]} 19. Nb3 {[%clk 0:01:43.8]} 19... Bb7 {[%clk
0:01:07]} 20. Na5 {[%clk 0:01:38.8]} 20... Bc8 {[%clk 0:01:03.3]} 21. Qf3 {[%clk
0:01:36.2]} 21... Rb8 {[%clk 0:00:57.8]} 22. Bb3 {[%clk 0:01:29.6]} 22... Ne5
{[%clk 0:00:57.8]} 23. Qg3 {[%clk 0:01:29.2]} 23... Be6 {[%clk 0:00:56.6]} 24.
Rac1 {[%clk 0:01:27.8]} 24... Bxb3 {[%clk 0:00:35.8]} 25. Nxb3 {[%clk
0:01:28.7]} 25... Rbc8 {[%clk 0:00:28.6]} 26. a3 {[%clk 0:01:23.2]} 26... Qb6
{[%clk 0:00:17.4]} 27. Bf4 {[%clk 0:01:11.6]} 27... f6 {[%clk 0:00:15.1]} 28.
Bxe5 {[%clk 0:01:03.2]} 28... fxe5 {[%clk 0:00:13.6]} 29. Rc5 {[%clk 0:01:03]}
29... Re7 {[%clk 0:00:11.4]} 30. Rec1 {[%clk 0:01:01.4]} 30... Qe6 {[%clk
0:00:11.1]} 31. Na5 {[%clk 0:00:57.4]} 31... Qa2 {[%clk 0:00:10.8]} 32. Nc6
{[%clk 0:00:54.1]} 32... Rf7 {[%clk 0:00:10.1]} 33. R1c2 {[%clk 0:00:45.4]}
33... Qa1+ {[%clk 0:00:08.6]} 34. Kh2 {[%clk 0:00:45]} 34... Bh6 {[%clk
0:00:08.1]} 35. Qg4 {[%clk 0:00:37.3]} 35... Rcf8 {[%clk 0:00:06.8]} 36. Nxe5
{[%clk 0:00:30]} 36... Bf4+ {[%clk 0:00:06.3]} 37. g3 {[%clk 0:00:26.5]} 37...
Bxe5 {[%clk 0:00:06.9]} 38. Kg2 {[%clk 0:00:21.2]} 38... Qe1 {[%clk 0:00:06.4]}
39. Qe6 {[%clk 0:00:16]} 39... Bd6 {[%clk 0:00:05.9]} 40. Rc6 {[%clk 0:00:10.5]}
40... Kg7 {[%clk 0:00:06.1]} 41. e5 {[%clk 0:00:10.7]} 41... Rxf2+ {[%clk
0:00:05.6]} 42. Rxf2 {[%clk 0:00:08.5]} 42... Rxf2# {[%clk 0:00:06.5]} 0-1

[Event "*** SCC Grand Prix: Titled Tuesday Blitz"]
[Site "Chess.com"]
[Date "2020.07.07"]
[Round "9"]
[White "coalescenet"]
[Black "BlackBoarder"]
[Result "0-1"]
[WhiteElo "2414"]
[BlackElo "2604"]
[TimeControl "180+1"]
[EndTime "11:46:50 PDT"]
[Termination "BlackBoarder won by resignation"]

1. d4 {[%clk 0:03:00.1]} 1... e6 {[%clk 0:02:58.8]} 2. Nf3 {[%clk 0:02:56.3]}
2... Nf6 {[%clk 0:02:58.8]} 3. c4 {[%clk 0:02:55.7]} 3... d5 {[%clk 0:02:56.1]}
4. Nc3 {[%clk 0:02:55.3]} 4... Bb4 {[%clk 0:02:55.7]} 5. e3 {[%clk 0:02:53.2]}
5... O-O {[%clk 0:02:55]} 6. Bd3 {[%clk 0:02:51.3]} 6... dxc4 {[%clk 0:02:54.8]}
7. Bxc4 {[%clk 0:02:51.2]} 7... a6 {[%clk 0:02:55.2]} 8. O-O {[%clk 0:02:46.7]}
8... b5 {[%clk 0:02:55.1]} 9. Bd3 {[%clk 0:02:44.1]} 9... Bb7 {[%clk 0:02:55.4]}
10. a4 {[%clk 0:02:40.1]} 10... bxa4 {[%clk 0:02:48.2]} 11. Rxa4 {[%clk
0:02:35.3]} 11... Bd6 {[%clk 0:02:46.9]} 12. e4 {[%clk 0:02:30.2]} 12... Be7
{[%clk 0:02:22.2]} 13. Bg5 {[%clk 0:02:22]} 13... Nbd7 {[%clk 0:02:17]} 14. Qb3
{[%clk 0:02:12.7]} 14... Nb6 {[%clk 0:02:03.6]} 15. Ra5 {[%clk 0:02:02.5]} 15...
h6 {[%clk 0:02:01.2]} 16. Bf4 {[%clk 0:01:49.1]} 16... Nfd7 {[%clk 0:01:37.6]}
17. Rfa1 {[%clk 0:01:48.2]} 17... c5 {[%clk 0:01:33.6]} 18. e5 {[%clk
0:01:27.7]} 18... cxd4 {[%clk 0:01:28.2]} 19. Ne2 {[%clk 0:01:22.2]} 19... Nc5
{[%clk 0:01:23.5]} 20. Qd1 {[%clk 0:01:17]} 20... Bxf3 {[%clk 0:01:21.8]} 21.
gxf3 {[%clk 0:01:16.1]} 21... Nd5 {[%clk 0:01:04.2]} 22. Be4 {[%clk 0:01:05.1]}
22... Nxf4 {[%clk 0:00:56.3]} 23. Nxf4 {[%clk 0:01:05.7]} 23... Rb8 {[%clk
0:00:55.3]} 24. Bc2 {[%clk 0:00:46.8]} 24... Rxb2 {[%clk 0:00:49.5]} 25. R1a4
{[%clk 0:00:37.5]} 25... Nxa4 {[%clk 0:00:47]} 26. Rxa4 {[%clk 0:00:36.9]} 26...
Qc7 {[%clk 0:00:40.9]} 27. Bd3 {[%clk 0:00:36]} 27... Qxe5 {[%clk 0:00:38.6]}
28. Ne2 {[%clk 0:00:31.1]} 28... a5 {[%clk 0:00:28.8]} 29. Rxd4 {[%clk
0:00:30.6]} 29... Bb4 {[%clk 0:00:22.2]} 30. Re4 {[%clk 0:00:26]} 30... Qd5
{[%clk 0:00:16.5]} 31. Kg2 {[%clk 0:00:22.9]} 31... Rd2 {[%clk 0:00:15.8]} 32.
Nf4 {[%clk 0:00:10.3]} 32... Rxd1 {[%clk 0:00:14.3]} 33. Nxd5 {[%clk 0:00:10.6]}
33... exd5 {[%clk 0:00:14.7]} 34. Rd4 {[%clk 0:00:11.2]} 34... Rd2 {[%clk
0:00:11.8]} 35. Rxd5 {[%clk 0:00:10.4]} 35... g6 {[%clk 0:00:12.1]} 36. h4
{[%clk 0:00:08.4]} 36... Rc8 {[%clk 0:00:12.1]} 37. f4 {[%clk 0:00:08.1]} 37...
Kg7 {[%clk 0:00:11.7]} 38. h5 {[%clk 0:00:08.4]} 38... Rc3 {[%clk 0:00:11]} 39.
Be4 {[%clk 0:00:07.1]} 39... Rxd5 {[%clk 0:00:10.6]} 40. Bxd5 {[%clk 0:00:06.7]}
40... gxh5 {[%clk 0:00:11]} 41. Kh2 {[%clk 0:00:02.3]} 41... a4 {[%clk
0:00:11.3]} 0-1

[Event "*** SCC Grand Prix: Titled Tuesday Blitz"]
[Site "Chess.com"]
[Date "2020.07.07"]
[Round "9"]
[White "jonychess03"]
[Black "RoelandPruijssers"]
[Result "0-1"]
[WhiteElo "2308"]
[BlackElo "2595"]
[TimeControl "180+1"]
[EndTime "11:46:52 PDT"]
[Termination "RoelandPruijssers won on time"]

1. c4 {[%clk 0:03:00.9]} 1... f5 {[%clk 0:02:59.1]} 2. Nc3 {[%clk 0:02:59.7]}
2... Nf6 {[%clk 0:02:58.3]} 3. g3 {[%clk 0:03:00.3]} 3... g6 {[%clk 0:02:55.4]}
4. Bg2 {[%clk 0:03:00.7]} 4... Bg7 {[%clk 0:02:55.1]} 5. Nf3 {[%clk 0:03:00.8]}
5... O-O {[%clk 0:02:54]} 6. d4 {[%clk 0:03:01.4]} 6... d6 {[%clk 0:02:53.9]} 7.
O-O {[%clk 0:03:00.9]} 7... Nc6 {[%clk 0:02:52.9]} 8. Bg5 {[%clk 0:02:57]} 8...
Ne4 {[%clk 0:02:48.1]} 9. Nxe4 {[%clk 0:02:46.4]} 9... fxe4 {[%clk 0:02:45.4]}
10. Nd2 {[%clk 0:02:46.9]} 10... Nxd4 {[%clk 0:02:36.9]} 11. Nxe4 {[%clk
0:02:44.5]} 11... Bg4 {[%clk 0:02:26.5]} 12. Re1 {[%clk 0:02:36.4]} 12... Qd7
{[%clk 0:02:13.9]} 13. Qd2 {[%clk 0:02:21]} 13... e5 {[%clk 0:01:59.2]} 14. Rac1
{[%clk 0:02:03.8]} 14... c6 {[%clk 0:01:33.7]} 15. c5 {[%clk 0:01:23.1]} 15...
d5 {[%clk 0:01:25.2]} 16. Nd6 {[%clk 0:01:21.3]} 16... a5 {[%clk 0:00:49.9]} 17.
Be3 {[%clk 0:00:55.6]} 17... b6 {[%clk 0:00:36.3]} 18. Bxd4 {[%clk 0:00:49.5]}
18... exd4 {[%clk 0:00:35.6]} 19. b4 {[%clk 0:00:50.1]} 19... axb4 {[%clk
0:00:30.4]} 20. Qxb4 {[%clk 0:00:51]} 20... bxc5 {[%clk 0:00:15.1]} 21. Qxc5
{[%clk 0:00:50.7]} 21... Be5 {[%clk 0:00:12.1]} 22. Bxd5+ {[%clk 0:00:46.3]}
22... cxd5 {[%clk 0:00:13]} 23. Qxd5+ {[%clk 0:00:46.7]} 23... Qe6 {[%clk
0:00:13.6]} 24. Qxe6+ {[%clk 0:00:26]} 24... Bxe6 {[%clk 0:00:14.5]} 25. Nc4
{[%clk 0:00:26.5]} 25... Bg7 {[%clk 0:00:12.4]} 26. Rc2 {[%clk 0:00:17.2]} 26...
Rfc8 {[%clk 0:00:08.5]} 27. Rec1 {[%clk 0:00:16.4]} 27... Bh6 {[%clk 0:00:08]}
28. e3 {[%clk 0:00:12.7]} 28... d3 {[%clk 0:00:08.2]} 29. Rc3 {[%clk 0:00:10.5]}
29... Rxc4 {[%clk 0:00:08.8]} 30. Rxc4 {[%clk 0:00:09.9]} 30... d2 {[%clk
0:00:09.3]} 31. Rd1 {[%clk 0:00:03.5]} 31... Bxc4 {[%clk 0:00:08.9]} 32. Rxd2
{[%clk 0:00:03.8]} 32... Rxa2 {[%clk 0:00:08.4]} 33. Rd8+ {[%clk 0:00:03.7]}
33... Bf8 {[%clk 0:00:06.8]} 34. Kg2 {[%clk 0:00:04.1]} 34... Bb5 {[%clk
0:00:06.4]} 35. e4 {[%clk 0:00:03.7]} 35... Bc6 {[%clk 0:00:06.6]} 36. Rd4
{[%clk 0:00:01.9]} 36... Bg7 {[%clk 0:00:05.2]} 37. Rc4 {[%clk 0:00:01.8]} 37...
Bb7 {[%clk 0:00:04.7]} 38. Rb4 {[%clk 0:00:01.9]} 38... Rb2 {[%clk 0:00:05.3]}
0-1

[Event "*** SCC Grand Prix: Titled Tuesday Blitz"]
[Site "Chess.com"]
[Date "2020.07.07"]
[Round "9"]
[White "Efremov_Vlad"]
[Black "alfiefischer77"]
[Result "1-0"]
[WhiteElo "2213"]
[BlackElo "2275"]
[TimeControl "180+1"]
[EndTime "11:46:52 PDT"]
[Termination "Efremov_Vlad won by resignation"]

1. d4 {[%clk 0:03:00.9]} 1... Nf6 {[%clk 0:02:59.7]} 2. c4 {[%clk 0:03:00.8]}
2... e6 {[%clk 0:02:59.6]} 3. Nf3 {[%clk 0:02:58.9]} 3... Bb4+ {[%clk 0:03:00]}
4. Bd2 {[%clk 0:02:58.7]} 4... Qe7 {[%clk 0:02:59.5]} 5. g3 {[%clk 0:02:57.5]}
5... Nc6 {[%clk 0:02:58]} 6. Nc3 {[%clk 0:02:54.3]} 6... O-O {[%clk 0:02:54.8]}
7. Bg2 {[%clk 0:02:54.1]} 7... Na5 {[%clk 0:02:55.1]} 8. b3 {[%clk 0:02:42.5]}
8... b6 {[%clk 0:02:54.4]} 9. O-O {[%clk 0:02:40.2]} 9... Bb7 {[%clk 0:02:54.3]}
10. Qc2 {[%clk 0:02:31.2]} 10... d5 {[%clk 0:02:48.6]} 11. Ne5 {[%clk
0:02:28.1]} 11... c5 {[%clk 0:02:41.9]} 12. a3 {[%clk 0:02:14]} 12... Bxa3
{[%clk 0:02:35.6]} 13. Rxa3 {[%clk 0:02:08]} 13... cxd4 {[%clk 0:02:32.4]} 14.
Nb1 {[%clk 0:02:04.1]} 14... Nc6 {[%clk 0:02:25.2]} 15. Nxc6 {[%clk 0:02:00.5]}
15... Bxc6 {[%clk 0:02:26.1]} 16. b4 {[%clk 0:01:45.9]} 16... Rac8 {[%clk
0:02:20.2]} 17. Qa2 {[%clk 0:01:37]} 17... Rc7 {[%clk 0:02:11]} 18. b5 {[%clk
0:01:24.2]} 18... Ba8 {[%clk 0:02:07.8]} 19. Ra4 {[%clk 0:01:21.9]} 19... Rd8
{[%clk 0:01:55]} 20. Bf4 {[%clk 0:01:07]} 20... e5 {[%clk 0:01:52]} 21. Bg5
{[%clk 0:01:07.2]} 21... e4 {[%clk 0:01:38.7]} 22. Nd2 {[%clk 0:00:45.3]} 22...
h6 {[%clk 0:01:21]} 23. Bxf6 {[%clk 0:00:43.5]} 23... Qxf6 {[%clk 0:01:19]} 24.
Rxa7 {[%clk 0:00:42.5]} 24... Rxa7 {[%clk 0:01:13.3]} 25. Qxa7 {[%clk
0:00:43.4]} 25... Qg5 {[%clk 0:01:03.8]} 26. Qxb6 {[%clk 0:00:37]} 26... dxc4
{[%clk 0:00:53.7]} 27. Nxc4 {[%clk 0:00:35]} 27... d3 {[%clk 0:00:48.8]} 28.
exd3 {[%clk 0:00:32.5]} 28... exd3 {[%clk 0:00:49.7]} 29. Bxa8 {[%clk
0:00:31.9]} 29... Rxa8 {[%clk 0:00:50.6]} 30. Qc6 {[%clk 0:00:30.1]} 30... Rd8
{[%clk 0:00:46.8]} 31. b6 {[%clk 0:00:22.8]} 31... d2 {[%clk 0:00:45.5]} 32.
Nxd2 {[%clk 0:00:15.1]} 32... Qxd2 {[%clk 0:00:32.6]} 33. b7 {[%clk 0:00:15.1]}
33... Qb4 {[%clk 0:00:24.1]} 34. Qc7 {[%clk 0:00:14.4]} 34... Rf8 {[%clk
0:00:17.2]} 35. Rc1 {[%clk 0:00:13.9]} 35... g6 {[%clk 0:00:15]} 36. Qc8 {[%clk
0:00:11.2]} 36... Qb2 {[%clk 0:00:08.1]} 37. Qxf8+ {[%clk 0:00:08.1]} 37... Kxf8
{[%clk 0:00:09]} 38. Rc8+ {[%clk 0:00:07.8]} 38... Kg7 {[%clk 0:00:09.3]} 39.
b8=Q {[%clk 0:00:07.6]} 39... Qa1+ {[%clk 0:00:09.7]} 40. Kg2 {[%clk 0:00:07.5]}
40... Qa6 {[%clk 0:00:07.9]} 41. Qb2+ {[%clk 0:00:05.8]} 41... f6 {[%clk
0:00:06.8]} 1-0

[Event "*** SCC Grand Prix: Titled Tuesday Blitz"]
[Site "Chess.com"]
[Date "2020.07.07"]
[Round "9"]
[White "Ati1517"]
[Black "Ze-Pequeno"]
[Result "1-0"]
[WhiteElo "2364"]
[BlackElo "2230"]
[TimeControl "180+1"]
[EndTime "11:46:53 PDT"]
[Termination "Ati1517 won by checkmate"]

1. d4 {[%clk 0:03:00.9]} 1... Nf6 {[%clk 0:02:59.5]} 2. c4 {[%clk 0:02:58.5]}
2... g6 {[%clk 0:02:59.3]} 3. Nc3 {[%clk 0:02:57.7]} 3... d5 {[%clk 0:02:59.1]}
4. cxd5 {[%clk 0:02:47.7]} 4... Nxd5 {[%clk 0:02:56.8]} 5. e4 {[%clk 0:02:48.2]}
5... Nxc3 {[%clk 0:02:56.6]} 6. bxc3 {[%clk 0:02:49]} 6... Bg7 {[%clk
0:02:57.2]} 7. Nf3 {[%clk 0:02:47]} 7... c5 {[%clk 0:02:55.3]} 8. Be3 {[%clk
0:02:45.2]} 8... Nc6 {[%clk 0:02:46.4]} 9. Be2 {[%clk 0:02:29.2]} 9... Bg4
{[%clk 0:02:33.1]} 10. e5 {[%clk 0:02:28]} 10... O-O {[%clk 0:02:25.8]} 11. O-O
{[%clk 0:02:23.3]} 11... cxd4 {[%clk 0:02:20.2]} 12. cxd4 {[%clk 0:02:21.5]}
12... Be6 {[%clk 0:01:59.2]} 13. a3 {[%clk 0:00:40.8]} 13... a6 {[%clk
0:01:52.8]} 14. Rb1 {[%clk 0:00:39.8]} 14... b5 {[%clk 0:01:48.5]} 15. h3 {[%clk
0:00:40.3]} 15... Bd5 {[%clk 0:01:40.7]} 16. Ng5 {[%clk 0:00:39.4]} 16... Qa5
{[%clk 0:01:39.3]} 17. Bf3 {[%clk 0:00:39.3]} 17... Rad8 {[%clk 0:01:32.2]} 18.
Bxd5 {[%clk 0:00:38.7]} 18... Rxd5 {[%clk 0:01:32.2]} 19. Qf3 {[%clk 0:00:39.2]}
19... e6 {[%clk 0:01:29.5]} 20. Ne4 {[%clk 0:00:36]} 20... Nxd4 {[%clk
0:01:15.4]} 21. Bxd4 {[%clk 0:00:32]} 21... Rxd4 {[%clk 0:01:14.1]} 22. Nf6+
{[%clk 0:00:32.5]} 22... Kh8 {[%clk 0:01:07.3]} 23. Rfd1 {[%clk 0:00:32.3]}
23... Qd8 {[%clk 0:01:02.3]} 24. Rxd4 {[%clk 0:00:29.6]} 24... Qxd4 {[%clk
0:01:01.8]} 25. Re1 {[%clk 0:00:29.2]} 25... Rd8 {[%clk 0:00:54]} 26. Kh2 {[%clk
0:00:29.2]} 26... h5 {[%clk 0:00:37.8]} 27. Re4 {[%clk 0:00:24.8]} 27... Qd3
{[%clk 0:00:30.9]} 28. Qf4 {[%clk 0:00:22.8]} 28... Qxa3 {[%clk 0:00:23.4]} 29.
Nxh5 {[%clk 0:00:19.5]} 29... gxh5 {[%clk 0:00:20.8]} 30. Qxf7 {[%clk
0:00:19.2]} 30... Qf8 {[%clk 0:00:18.9]} 31. Qxh5+ {[%clk 0:00:18.4]} 31... Kg8
{[%clk 0:00:19.1]} 32. Rg4 {[%clk 0:00:18]} 32... Rd7 {[%clk 0:00:19.2]} 33. Qg6
{[%clk 0:00:16.9]} 33... Re7 {[%clk 0:00:18.5]} 34. f4 {[%clk 0:00:15.4]} 34...
Qf7 {[%clk 0:00:16.9]} 35. Qc2 {[%clk 0:00:14.7]} 35... Qf5 {[%clk 0:00:16]} 36.
Qd1 {[%clk 0:00:14.7]} 36... Rf7 {[%clk 0:00:15.6]} 37. Qd8+ {[%clk 0:00:13.2]}
37... Rf8 {[%clk 0:00:15.9]} 38. Qc7 {[%clk 0:00:12.8]} 38... b4 {[%clk
0:00:14.8]} 39. Qxg7# {[%clk 0:00:12.2]} 1-0